[Event "Early-Titled-Tuesday-Blitz-February-13-2024"]
[Site "Chess.com"]
[Date "2024.02.13"]
[Round "8"]
[White "Alenzer"]
[Black "bylavochka"]
[Result "0-1"]
[WhiteElo "2132"]
[BlackElo "2324"]
[TimeControl "180+1"]
[EndTime "9:33:21 PST"]
[Termination "bylavochka won by checkmate"]

1. e4 {[%clk 0:02:47.5]} 1... c5 {[%clk 0:03:00.2]} 2. Nf3 {[%clk 0:02:46.5]}
2... d6 {[%clk 0:03:00.3]} 3. c3 {[%clk 0:02:46.7]} 3... Nf6 {[%clk 0:02:58.9]}
4. h3 {[%clk 0:02:45.7]} 4... Nc6 {[%clk 0:02:58.5]} 5. Bd3 {[%clk 0:02:43]}
5... e6 {[%clk 0:02:58.7]} 6. Bc2 {[%clk 0:02:42.2]} 6... Be7 {[%clk 0:02:59]}
7. O-O {[%clk 0:02:41.5]} 7... O-O {[%clk 0:02:59]} 8. Re1 {[%clk 0:02:40.4]}
8... Rb8 {[%clk 0:02:56.2]} 9. d4 {[%clk 0:02:39.8]} 9... cxd4 {[%clk
0:02:54.7]} 10. cxd4 {[%clk 0:02:39.8]} 10... e5 {[%clk 0:02:54.3]} 11. d5
{[%clk 0:02:37.5]} 11... Na5 {[%clk 0:02:49.5]} 12. Nc3 {[%clk 0:02:34.8]} 12...
Nc4 {[%clk 0:02:48.5]} 13. b3 {[%clk 0:02:24.5]} 13... Nb6 {[%clk 0:02:46.9]}
14. Be3 {[%clk 0:02:15.1]} 14... Bd7 {[%clk 0:02:45.2]} 15. Rc1 {[%clk
0:01:44.5]} 15... Re8 {[%clk 0:02:36.4]} 16. a4 {[%clk 0:01:40.3]} 16... Nh5
{[%clk 0:02:34.9]} 17. a5 {[%clk 0:01:38.8]} 17... Nc8 {[%clk 0:02:35.4]} 18. b4
{[%clk 0:01:35.7]} 18... Nf4 {[%clk 0:02:33.4]} 19. Bxf4 {[%clk 0:01:32.1]}
19... exf4 {[%clk 0:02:34.3]} 20. e5 {[%clk 0:01:32.2]} 20... dxe5 {[%clk
0:02:33.4]} 21. Nxe5 {[%clk 0:01:32.3]} 21... Bxb4 {[%clk 0:02:33.2]} 22. Qd3
{[%clk 0:01:17.3]} 22... g6 {[%clk 0:02:27.4]} 23. Re2 {[%clk 0:00:46.7]} 23...
Bf5 {[%clk 0:02:22.8]} 24. Qc4 {[%clk 0:00:43.3]} 24... Qxa5 {[%clk 0:02:04.1]}
25. Bxf5 {[%clk 0:00:37.4]} 25... Nd6 {[%clk 0:01:59.2]} 26. Qxf4 {[%clk
0:00:30.4]} 26... Bxc3 {[%clk 0:01:37.1]} 27. Bd7 {[%clk 0:00:25.4]} 27... Rxe5
{[%clk 0:01:21.8]} 28. Rxe5 {[%clk 0:00:25.3]} 28... Bxe5 {[%clk 0:00:39.5]} 29.
Qxe5 {[%clk 0:00:25.1]} 29... Qb6 {[%clk 0:00:40.1]} 30. Rd1 {[%clk 0:00:20.3]}
30... Rd8 {[%clk 0:00:38.2]} 31. Bg4 {[%clk 0:00:20.3]} 31... Re8 {[%clk
0:00:34.2]} 32. Qf6 {[%clk 0:00:18.7]} 32... Ne4 {[%clk 0:00:31.6]} 33. Qxb6
{[%clk 0:00:16.9]} 33... axb6 {[%clk 0:00:29.2]} 34. Bf3 {[%clk 0:00:17.1]}
34... Nd6 {[%clk 0:00:27.6]} 35. Rb1 {[%clk 0:00:16.9]} 35... b5 {[%clk
0:00:26.2]} 36. g3 {[%clk 0:00:15.8]} 36... Rc8 {[%clk 0:00:24]} 37. Kg2 {[%clk
0:00:15.6]} 37... Kg7 {[%clk 0:00:19.3]} 38. Rb2 {[%clk 0:00:15.6]} 38... Kf6
{[%clk 0:00:19.4]} 39. Be2 {[%clk 0:00:15.8]} 39... Rc5 {[%clk 0:00:19]} 40. Bf3
{[%clk 0:00:13.6]} 40... Ke5 {[%clk 0:00:19.3]} 41. Re2+ {[%clk 0:00:13.7]}
41... Kd4 {[%clk 0:00:18.8]} 42. Re7 {[%clk 0:00:13.6]} 42... b4 {[%clk
0:00:18.4]} 43. Rd7 {[%clk 0:00:11.5]} 43... Ke5 {[%clk 0:00:18.5]} 44. Re7+
{[%clk 0:00:11.6]} 44... Kd4 {[%clk 0:00:14]} 45. Rd7 {[%clk 0:00:11.9]} 45...
Nb5 {[%clk 0:00:06.2]} 46. Bd1 {[%clk 0:00:06.3]} 46... Rc7 {[%clk 0:00:04.4]}
47. Rd8 {[%clk 0:00:05.1]} 47... Kc3 {[%clk 0:00:04]} 48. d6 {[%clk 0:00:04.1]}
48... Rc6 {[%clk 0:00:02.6]} 49. Ba4 {[%clk 0:00:04.5]} 49... Rxd6 {[%clk
0:00:02.4]} 50. Rc8+ {[%clk 0:00:03.3]} 50... Rc6 {[%clk 0:00:03]} 51. Rf8
{[%clk 0:00:02.1]} 51... b3 {[%clk 0:00:02.7]} 52. Bxb5 {[%clk 0:00:02.1]} 52...
b2 {[%clk 0:00:03.2]} 53. Bd3 {[%clk 0:00:01.4]} 53... Kxd3 {[%clk 0:00:03.2]}
54. Rd8+ {[%clk 0:00:01.8]} 54... Kc2 {[%clk 0:00:03.8]} 55. Rd7 {[%clk
0:00:01.9]} 55... b1=Q {[%clk 0:00:03.9]} 56. Rxf7 {[%clk 0:00:02.3]} 56... Rc5
{[%clk 0:00:04.4]} 57. Rxh7 {[%clk 0:00:02.3]} 57... Qb5 {[%clk 0:00:05]} 58.
Rh4 {[%clk 0:00:02.4]} 58... Qc6+ {[%clk 0:00:05.7]} 59. Kh2 {[%clk 0:00:02.1]}
59... Kd2 {[%clk 0:00:06.6]} 60. Rd4+ {[%clk 0:00:01.8]} 60... Ke2 {[%clk
0:00:06.4]} 61. Rb4 {[%clk 0:00:02.3]} 61... Kxf2 {[%clk 0:00:06.3]} 62. Rb2+
{[%clk 0:00:02.8]} 62... Rc2 {[%clk 0:00:06.9]} 63. Rb3 {[%clk 0:00:03]} 63...
Qg2# {[%clk 0:00:06.6]} 0-1

[Event "Early-Titled-Tuesday-Blitz-February-13-2024"]
[Site "Chess.com"]
[Date "2024.02.13"]
[Round "8"]
[White "ProChessWICTH"]
[Black "YurasovMat-2012"]
[Result "0-1"]
[WhiteElo "2521"]
[BlackElo "2681"]
[TimeControl "180+1"]
[EndTime "9:33:22 PST"]
[Termination "YurasovMat-2012 won on time"]

1. e4 {[%clk 0:03:00.9]} 1... e5 {[%clk 0:03:00.2]} 2. Nf3 {[%clk 0:03:00.1]}
2... Nf6 {[%clk 0:03:00.5]} 3. Bc4 {[%clk 0:02:58.9]} 3... Nxe4 {[%clk
0:02:59.2]} 4. Nc3 {[%clk 0:02:58.8]} 4... Nd6 {[%clk 0:02:57.2]} 5. Bb3 {[%clk
0:02:58.8]} 5... Nc6 {[%clk 0:02:57.4]} 6. O-O {[%clk 0:02:58.8]} 6... Be7
{[%clk 0:02:57.9]} 7. Re1 {[%clk 0:02:58.9]} 7... O-O {[%clk 0:02:58.3]} 8. Nxe5
{[%clk 0:02:58.9]} 8... Nxe5 {[%clk 0:02:59.2]} 9. Rxe5 {[%clk 0:02:59.1]} 9...
Bf6 {[%clk 0:02:59.5]} 10. Re1 {[%clk 0:02:59.7]} 10... c6 {[%clk 0:02:59.7]}
11. d4 {[%clk 0:02:59.4]} 11... Nf5 {[%clk 0:03:00]} 12. Ne2 {[%clk 0:03:00.1]}
12... d5 {[%clk 0:02:59.9]} 13. c3 {[%clk 0:03:00.6]} 13... Re8 {[%clk
0:02:57.7]} 14. Bc2 {[%clk 0:03:00.4]} 14... Nd6 {[%clk 0:02:56.2]} 15. Ng3
{[%clk 0:03:00.6]} 15... g6 {[%clk 0:02:54.6]} 16. Bf4 {[%clk 0:02:58.6]} 16...
Be6 {[%clk 0:02:53.9]} 17. Qf3 {[%clk 0:02:50.8]} 17... Bg5 {[%clk 0:02:50.9]}
18. Be5 {[%clk 0:02:45.4]} 18... Nc4 {[%clk 0:02:47.6]} 19. b3 {[%clk
0:02:38.9]} 19... Nxe5 {[%clk 0:02:47.5]} 20. Rxe5 {[%clk 0:02:39.8]} 20... f6
{[%clk 0:02:34.5]} 21. Re2 {[%clk 0:02:36.8]} 21... Qd7 {[%clk 0:02:33.8]} 22.
h3 {[%clk 0:02:33.8]} 22... f5 {[%clk 0:02:31.8]} 23. Rae1 {[%clk 0:02:27.6]}
23... Bf7 {[%clk 0:02:31.6]} 24. Nf1 {[%clk 0:01:40.4]} 24... Qd6 {[%clk
0:02:23.2]} 25. g3 {[%clk 0:01:33.9]} 25... c5 {[%clk 0:02:14.8]} 26. h4 {[%clk
0:01:29.7]} 26... Bf6 {[%clk 0:02:14.3]} 27. Rxe8+ {[%clk 0:01:15.5]} 27... Rxe8
{[%clk 0:02:13.8]} 28. Rxe8+ {[%clk 0:01:16]} 28... Bxe8 {[%clk 0:02:14.7]} 29.
Ne3 {[%clk 0:01:14.9]} 29... Bc6 {[%clk 0:02:13.6]} 30. g4 {[%clk 0:00:58.7]}
30... cxd4 {[%clk 0:02:09.4]} 31. cxd4 {[%clk 0:00:58.2]} 31... f4 {[%clk
0:01:58.6]} 32. Ng2 {[%clk 0:00:57]} 32... Bxd4 {[%clk 0:01:58.9]} 33. Nxf4
{[%clk 0:00:56]} 33... Be5 {[%clk 0:01:57.1]} 34. Nd3 {[%clk 0:00:38.9]} 34...
d4 {[%clk 0:01:53.9]} 35. Qe2 {[%clk 0:00:37.8]} 35... Qd5 {[%clk 0:01:54.1]}
36. f3 {[%clk 0:00:33]} 36... Bg3 {[%clk 0:01:39.6]} 37. Kg2 {[%clk 0:00:26.7]}
37... Bxh4 {[%clk 0:01:38.2]} 38. Nb4 {[%clk 0:00:25.8]} 38... Qd6 {[%clk
0:01:33.3]} 39. Nxc6 {[%clk 0:00:25.6]} 39... bxc6 {[%clk 0:01:34.2]} 40. Qe8+
{[%clk 0:00:19]} 40... Kg7 {[%clk 0:01:33.9]} 41. Qe2 {[%clk 0:00:08.8]} 41...
c5 {[%clk 0:01:33.5]} 42. Be4 {[%clk 0:00:08.3]} 42... Bd8 {[%clk 0:01:30.3]}
43. Kf1 {[%clk 0:00:02.5]} 43... Bc7 {[%clk 0:01:28.5]} 44. Ke1 {[%clk
0:00:02.8]} 44... Qg3+ {[%clk 0:01:27.2]} 45. Kd1 {[%clk 0:00:03.4]} 45... h5
{[%clk 0:01:25.2]} 46. gxh5 {[%clk 0:00:04.3]} 46... gxh5 {[%clk 0:01:26.1]} 47.
Qa6 {[%clk 0:00:02.4]} 47... Qg1+ {[%clk 0:01:20.8]} 48. Kc2 {[%clk 0:00:02.6]}
48... Qh2+ {[%clk 0:01:07.6]} 49. Kb1 {[%clk 0:00:02.3]} 49... Be5 {[%clk
0:00:52.2]} 50. Qg6+ {[%clk 0:00:02]} 50... Kf8 {[%clk 0:00:52.3]} 51. Qf5+
{[%clk 0:00:02.5]} 51... Ke7 {[%clk 0:00:51]} 52. Qh7+ {[%clk 0:00:02.9]} 52...
Kd8 {[%clk 0:00:41.7]} 53. Qg8+ {[%clk 0:00:03]} 53... Kc7 {[%clk 0:00:32.8]}
54. Qf7+ {[%clk 0:00:03.3]} 54... Kd6 {[%clk 0:00:19]} 55. Qd5+ {[%clk
0:00:02.2]} 55... Ke7 {[%clk 0:00:16.2]} 56. Qxc5+ {[%clk 0:00:03.1]} 56... Kf6
{[%clk 0:00:07.3]} 57. Qf8+ {[%clk 0:00:03.4]} 57... Kg5 {[%clk 0:00:07.2]} 58.
Qf5+ {[%clk 0:00:03.6]} 58... Kh4 {[%clk 0:00:07.1]} 59. f4 {[%clk 0:00:02.4]}
59... Bxf4 {[%clk 0:00:06.3]} 60. Bd3 {[%clk 0:00:02.3]} 60... Qg1+ {[%clk
0:00:06]} 0-1

[Event "Early-Titled-Tuesday-Blitz-February-13-2024"]
[Site "Chess.com"]
[Date "2024.02.13"]
[Round "8"]
[White "Jospem"]
[Black "RobertoJBM"]
[Result "1/2-1/2"]
[WhiteElo "3034"]
[BlackElo "2812"]
[TimeControl "180+1"]
[EndTime "9:33:27 PST"]
[Termination "Game drawn by repetition"]

1. e4 {[%clk 0:03:00.9]} 1... c6 {[%clk 0:02:59.9]} 2. d4 {[%clk 0:03:01.5]}
2... d5 {[%clk 0:03:00.3]} 3. e5 {[%clk 0:03:02.3]} 3... Bf5 {[%clk 0:02:59.8]}
4. h4 {[%clk 0:03:03.1]} 4... Qb6 {[%clk 0:02:59.5]} 5. a4 {[%clk 0:03:00.1]}
5... a5 {[%clk 0:02:58.9]} 6. c3 {[%clk 0:02:57.4]} 6... e6 {[%clk 0:02:57.8]}
7. g4 {[%clk 0:02:48.6]} 7... Be4 {[%clk 0:02:57.7]} 8. f3 {[%clk 0:02:49.2]}
8... Bxb1 {[%clk 0:02:57.1]} 9. Rxb1 {[%clk 0:02:50.1]} 9... h5 {[%clk
0:02:56.1]} 10. Bd3 {[%clk 0:02:47.3]} 10... Be7 {[%clk 0:02:52.6]} 11. g5
{[%clk 0:02:38.3]} 11... g6 {[%clk 0:02:52.7]} 12. Ne2 {[%clk 0:02:38.9]} 12...
Bd8 {[%clk 0:02:46]} 13. b4 {[%clk 0:02:35.9]} 13... axb4 {[%clk 0:02:43.3]} 14.
cxb4 {[%clk 0:02:36.8]} 14... Ne7 {[%clk 0:02:43]} 15. Qc2 {[%clk 0:02:30.1]}
15... Nd7 {[%clk 0:02:42.2]} 16. Bd2 {[%clk 0:02:27.5]} 16... Nf5 {[%clk
0:02:40.7]} 17. Bxf5 {[%clk 0:02:27.1]} 17... exf5 {[%clk 0:02:41.1]} 18. a5
{[%clk 0:02:09.8]} 18... Qb5 {[%clk 0:02:32.5]} 19. Nf4 {[%clk 0:02:09.5]} 19...
Nf8 {[%clk 0:02:32.2]} 20. Qd3 {[%clk 0:02:02.1]} 20... Qxd3 {[%clk 0:02:27.8]}
21. Nxd3 {[%clk 0:02:03]} 21... Ne6 {[%clk 0:02:28]} 22. Bc3 {[%clk 0:02:03.6]}
22... Kd7 {[%clk 0:02:12.1]} 23. Kd2 {[%clk 0:02:03.6]} 23... Bc7 {[%clk
0:02:09.4]} 24. Ra1 {[%clk 0:02:01.3]} 24... b5 {[%clk 0:02:02.2]} 25. Rac1
{[%clk 0:01:51.2]} 25... Ra6 {[%clk 0:01:59.6]} 26. Bb2 {[%clk 0:01:51.6]} 26...
Rc8 {[%clk 0:01:59.1]} 27. Rc2 {[%clk 0:01:51.4]} 27... Bd8 {[%clk 0:01:59.3]}
28. Rhc1 {[%clk 0:01:51.8]} 28... Be7 {[%clk 0:01:59.8]} 29. Ke3 {[%clk
0:01:52.5]} 29... Raa8 {[%clk 0:01:58.3]} 30. Bc3 {[%clk 0:01:49.7]} 30... Ra7
{[%clk 0:01:56.5]} 31. Be1 {[%clk 0:01:49.1]} 31... Ra6 {[%clk 0:01:56.2]} 32.
Bf2 {[%clk 0:01:44.9]} 32... Raa8 {[%clk 0:01:56]} 33. Ke2 {[%clk 0:01:45.5]}
33... Ra7 {[%clk 0:01:55.7]} 34. Kf1 {[%clk 0:01:46.2]} 34... Raa8 {[%clk
0:01:56.1]} 35. Kg2 {[%clk 0:01:46.9]} 35... Ra7 {[%clk 0:01:56.7]} 36. Kg3
{[%clk 0:01:42]} 36... Rcc7 {[%clk 0:01:56.6]} 37. Rb1 {[%clk 0:01:37.4]} 37...
Ra8 {[%clk 0:01:56.5]} 38. Nc1 {[%clk 0:01:38.1]} 38... Raa7 {[%clk 0:01:53.4]}
39. Ne2 {[%clk 0:01:38.7]} 39... Ra8 {[%clk 0:01:52.8]} 40. Nc3 {[%clk
0:01:38.8]} 40... Ra6 {[%clk 0:01:51.2]} 41. f4 {[%clk 0:01:39.3]} 41... Ra8
{[%clk 0:01:50.9]} 42. Kf3 {[%clk 0:01:39.9]} 42... Raa7 {[%clk 0:01:50.9]} 43.
Ke3 {[%clk 0:01:40.5]} 43... Ra6 {[%clk 0:01:51.3]} 44. Rbc1 {[%clk 0:01:41]}
44... Bxb4 {[%clk 0:01:46.8]} 45. Be1 {[%clk 0:01:35.2]} 45... Bxa5 {[%clk
0:01:33]} 46. Ra2 {[%clk 0:01:35.2]} 46... Rca7 {[%clk 0:01:31.7]} 47. Rca1
{[%clk 0:01:35.4]} 47... b4 {[%clk 0:01:27.9]} 48. Ne2 {[%clk 0:01:32.6]} 48...
Nc7 {[%clk 0:01:11.6]} 49. Nc1 {[%clk 0:01:28.6]} 49... Bb6 {[%clk 0:01:09.3]}
50. Bxb4 {[%clk 0:01:19.8]} 50... Rxa2 {[%clk 0:01:06.9]} 51. Rxa2 {[%clk
0:01:20.7]} 51... Rxa2 {[%clk 0:01:06.4]} 52. Nxa2 {[%clk 0:01:21.6]} 52... Nb5
{[%clk 0:00:57.8]} 53. Bc5 {[%clk 0:01:21.7]} 53... Bxc5 {[%clk 0:00:55]} 54.
dxc5 {[%clk 0:01:22.6]} 54... Nc7 {[%clk 0:00:53.9]} 55. Nb4 {[%clk 0:01:20.8]}
55... Ne6 {[%clk 0:00:53.8]} 56. Nd3 {[%clk 0:01:21.4]} 56... Kc7 {[%clk
0:00:54.1]} 57. Kd2 {[%clk 0:01:22]} 57... Kb7 {[%clk 0:00:54.5]} 58. Kc3 {[%clk
0:01:22.7]} 58... Ka6 {[%clk 0:00:54.8]} 59. Kb4 {[%clk 0:01:23.4]} 59... Nd4
{[%clk 0:00:51.8]} 60. Kc3 {[%clk 0:01:03.6]} 60... Ne2+ {[%clk 0:00:45.3]} 61.
Kb4 {[%clk 0:00:54.4]} 61... Kb7 {[%clk 0:00:41]} 62. Kb3 {[%clk 0:00:46.1]}
62... Nd4+ {[%clk 0:00:37.3]} 63. Kc3 {[%clk 0:00:43.9]} 63... Nf3 {[%clk
0:00:37.3]} 64. Kb4 {[%clk 0:00:43.3]} 64... Nxh4 {[%clk 0:00:36.3]} 65. Ne1
{[%clk 0:00:42.7]} 65... Kc7 {[%clk 0:00:32.7]} 66. Kc3 {[%clk 0:00:40]} 66...
Kb7 {[%clk 0:00:29]} 67. Kb4 {[%clk 0:00:29.3]} 67... Ka6 {[%clk 0:00:29.4]} 68.
Ka4 {[%clk 0:00:29.2]} 68... Ka7 {[%clk 0:00:27.3]} 69. Ka5 {[%clk 0:00:28.3]}
69... Kb7 {[%clk 0:00:27.8]} 70. Ka4 {[%clk 0:00:28.6]} 70... Ka6 {[%clk
0:00:23.2]} 71. Kb4 {[%clk 0:00:28.6]} 71... Kb7 {[%clk 0:00:18.7]} 72. Ka5
{[%clk 0:00:27.5]} 72... Kc7 {[%clk 0:00:18.2]} 73. Kb4 {[%clk 0:00:25.5]} 73...
Kb7 {[%clk 0:00:09.9]} 74. Ka5 {[%clk 0:00:25.6]} 74... Ka7 {[%clk 0:00:09.7]}
75. Ka4 {[%clk 0:00:24.2]} 75... Ka6 {[%clk 0:00:09.6]} 76. Kb4 {[%clk
0:00:24.7]} 76... Kb7 {[%clk 0:00:05]} 1/2-1/2

[Event "Early-Titled-Tuesday-Blitz-February-13-2024"]
[Site "Chess.com"]
[Date "2024.02.13"]
[Round "8"]
[White "Rurep26"]
[Black "bilosuvenosu06"]
[Result "1-0"]
[WhiteElo "2735"]
[BlackElo "2536"]
[TimeControl "180+1"]
[EndTime "9:33:27 PST"]
[Termination "Rurep26 won by resignation"]

1. d4 {[%clk 0:03:00.9]} 1... Nf6 {[%clk 0:02:56.1]} 2. Bf4 {[%clk 0:03:01]}
2... d5 {[%clk 0:02:55.4]} 3. e3 {[%clk 0:03:00.6]} 3... Bf5 {[%clk 0:02:55.8]}
4. c4 {[%clk 0:03:00.2]} 4... e6 {[%clk 0:02:55.6]} 5. Nc3 {[%clk 0:03:00.7]}
5... c6 {[%clk 0:02:54.7]} 6. Qb3 {[%clk 0:03:01]} 6... Qb6 {[%clk 0:02:54.3]}
7. c5 {[%clk 0:03:01.3]} 7... Qxb3 {[%clk 0:02:54.1]} 8. axb3 {[%clk 0:03:02.2]}
8... Nbd7 {[%clk 0:02:54.6]} 9. b4 {[%clk 0:03:01.9]} 9... a6 {[%clk 0:02:49.3]}
10. h3 {[%clk 0:03:01.6]} 10... Be7 {[%clk 0:02:49.4]} 11. Nf3 {[%clk
0:03:01.7]} 11... O-O {[%clk 0:02:49.1]} 12. Nd2 {[%clk 0:03:02.2]} 12... Bg6
{[%clk 0:02:34.8]} 13. Nb3 {[%clk 0:03:02.4]} 13... Bd8 {[%clk 0:02:21.9]} 14.
Bd6 {[%clk 0:02:59.7]} 14... Re8 {[%clk 0:02:21.5]} 15. f3 {[%clk 0:02:59]}
15... Rc8 {[%clk 0:02:21.4]} 16. Na5 {[%clk 0:02:56.6]} 16... Bxa5 {[%clk
0:02:20.5]} 17. bxa5 {[%clk 0:02:57.5]} 17... e5 {[%clk 0:02:19.7]} 18. Kd2
{[%clk 0:02:57]} 18... exd4 {[%clk 0:02:19.3]} 19. exd4 {[%clk 0:02:57.9]} 19...
Re6 {[%clk 0:02:16.2]} 20. Ne2 {[%clk 0:02:46.6]} 20... Ne8 {[%clk 0:02:05.9]}
21. Bh2 {[%clk 0:02:45.9]} 21... Re7 {[%clk 0:02:05.4]} 22. Nc3 {[%clk 0:02:41]}
22... h6 {[%clk 0:01:55.3]} 23. Ra3 {[%clk 0:02:29.9]} 23... Nf8 {[%clk
0:01:54.8]} 24. Rb3 {[%clk 0:02:29.1]} 24... Ne6 {[%clk 0:01:54.3]} 25. Rb4
{[%clk 0:02:29.4]} 25... Rd7 {[%clk 0:01:46.5]} 26. Bd3 {[%clk 0:02:28.8]} 26...
Bxd3 {[%clk 0:01:45.2]} 27. Kxd3 {[%clk 0:02:29.7]} 27... g5 {[%clk 0:01:37]}
28. Ra1 {[%clk 0:02:26.9]} 28... N8g7 {[%clk 0:01:36.1]} 29. Ra3 {[%clk
0:02:20.7]} 29... Re8 {[%clk 0:01:21.5]} 30. Rab3 {[%clk 0:02:17.9]} 30... Nd8
{[%clk 0:01:21.8]} 31. Be5 {[%clk 0:02:14.7]} 31... Nh5 {[%clk 0:01:18.4]} 32.
g4 {[%clk 0:02:13.1]} 32... f6 {[%clk 0:01:18.3]} 33. Bd6 {[%clk 0:02:05.8]}
33... Ng7 {[%clk 0:01:14.3]} 34. Na4 {[%clk 0:01:58.8]} 34... Re6 {[%clk
0:01:05.2]} 35. Nb6 {[%clk 0:01:56.9]} 35... Rf7 {[%clk 0:01:03.1]} 36. Na8
{[%clk 0:01:53.5]} 36... Ne8 {[%clk 0:01:01.2]} 37. Bb8 {[%clk 0:01:49.9]} 37...
Rfe7 {[%clk 0:01:00]} 38. Kc2 {[%clk 0:01:46.1]} 38... Kf7 {[%clk 0:01:00.3]}
39. Nb6 {[%clk 0:01:44.2]} 39... Re2+ {[%clk 0:00:59.6]} 40. Kb1 {[%clk
0:01:43.8]} 40... R2e3 {[%clk 0:01:00.2]} 41. Nc8 {[%clk 0:01:41.4]} 41... Rxb3
{[%clk 0:00:59.6]} 42. Rxb3 {[%clk 0:01:42.3]} 42... Re1+ {[%clk 0:00:58.2]} 43.
Ka2 {[%clk 0:01:41.4]} 43... Ke6 {[%clk 0:00:58.3]} 44. Nd6 {[%clk 0:01:26.5]}
44... Nxd6 {[%clk 0:00:58]} 45. cxd6 {[%clk 0:01:27.4]} 45... Kd7 {[%clk
0:00:39.5]} 46. Bc7 {[%clk 0:01:27.2]} 46... Nf7 {[%clk 0:00:32.6]} 47. Rxb7
{[%clk 0:01:25.8]} 47... Nxd6 {[%clk 0:00:32.9]} 48. Bxd6+ {[%clk 0:01:26.2]}
48... Kxd6 {[%clk 0:00:33.8]} 49. Ra7 {[%clk 0:01:23.3]} 49... Rd1 {[%clk
0:00:27.3]} 50. Rxa6 {[%clk 0:01:23]} 50... Rxd4 {[%clk 0:00:27.4]} 51. Ka3
{[%clk 0:01:20.6]} 51... Rd3+ {[%clk 0:00:27.5]} 52. b3 {[%clk 0:01:20.6]} 52...
Rxf3 {[%clk 0:00:27.5]} 53. Ra8 {[%clk 0:01:21.2]} 53... Rxh3 {[%clk 0:00:25.1]}
54. Rf8 {[%clk 0:01:19]} 54... Rf3 {[%clk 0:00:24]} 55. a6 {[%clk 0:01:18.1]}
55... Rf1 {[%clk 0:00:20.1]} 56. Kb2 {[%clk 0:01:11.8]} 56... Rf2+ {[%clk
0:00:19.9]} 57. Ka3 {[%clk 0:01:03]} 57... Rf1 {[%clk 0:00:19.6]} 58. Kb4 {[%clk
0:00:47.4]} 58... Ra1 {[%clk 0:00:18.8]} 59. Rxf6+ {[%clk 0:00:46.7]} 59... Ke5
{[%clk 0:00:17.3]} 60. Rxc6 {[%clk 0:00:46]} 60... d4 {[%clk 0:00:17.6]} 61. Kb5
{[%clk 0:00:37.1]} 61... Kf4 {[%clk 0:00:16.9]} 62. Rd6 {[%clk 0:00:36.7]} 62...
Kxg4 {[%clk 0:00:16.2]} 63. Rxd4+ {[%clk 0:00:36.6]} 63... Kf3 {[%clk
0:00:16.8]} 64. Ra4 {[%clk 0:00:36.8]} 64... Re1 {[%clk 0:00:17]} 65. a7 {[%clk
0:00:35.3]} 65... Re8 {[%clk 0:00:17.7]} 66. Kc6 {[%clk 0:00:32.7]} 66... g4
{[%clk 0:00:16.9]} 67. b4 {[%clk 0:00:31.9]} 67... g3 {[%clk 0:00:17]} 68. Ra3+
{[%clk 0:00:32.5]} 68... Kf2 {[%clk 0:00:17.5]} 69. b5 {[%clk 0:00:24.7]} 69...
g2 {[%clk 0:00:17]} 70. Ra2+ {[%clk 0:00:25.3]} 70... Re2 {[%clk 0:00:17.2]} 71.
Ra1 {[%clk 0:00:24]} 71... Re1 {[%clk 0:00:17.2]} 72. Rxe1 {[%clk 0:00:23.9]}
72... Kxe1 {[%clk 0:00:16.7]} 73. a8=Q {[%clk 0:00:24.8]} 73... g1=Q {[%clk
0:00:17.2]} 74. Qa1+ {[%clk 0:00:25.3]} 74... Kf2 {[%clk 0:00:18.1]} 75. Qxg1+
{[%clk 0:00:25.5]} 75... Kxg1 {[%clk 0:00:19]} 76. b6 {[%clk 0:00:26.4]} 76...
h5 {[%clk 0:00:19.9]} 77. b7 {[%clk 0:00:27.3]} 77... h4 {[%clk 0:00:20.8]} 78.
b8=Q {[%clk 0:00:28.2]} 78... h3 {[%clk 0:00:21.4]} 79. Qg3+ {[%clk 0:00:28.1]}
79... Kf1 {[%clk 0:00:22.1]} 80. Qxh3+ {[%clk 0:00:28.6]} 1-0